[Event "Titled Tuesday Blitz February 21 Early 2023"]
[White "Kononenko, Dmitry"]
[Black "Zhigalko, Sergei"]
[WhiteFideId "14113538"]
[BlackFideId "13502956"]
[WhiteElo "2256"]
[BlackElo "2572"]
[Result "0-1"]
[Round "05"]
[TimeControl "180+2"]
[Date "2023.02.21"]
[WhiteClock "0:00:10"]
[BlackClock "0:00:18"]

1. d4 {[%clk 0:03:00]}  Nf6 {[%clk 0:03:00]} 2. c4 {[%clk 0:03:01]}  e6 {[%clk 0:03:00]} 3. g3 {[%clk 0:03:00]}  c5 {[%clk 0:03:00]} 4. d5 {[%clk 0:02:59]}  exd5 {[%clk 0:03:01]} 5. cxd5 {[%clk 0:03:00]}  d6 {[%clk 0:03:02]} 6. Nc3 {[%clk 0:03:00]}  g6 {[%clk 0:03:02]} 7. Bg2 {[%clk 0:03:00]}  Bg7 {[%clk 0:03:03]} 8. Nf3 {[%clk 0:03:00]}  O-O {[%clk 0:03:03]} 9. O-O {[%clk 0:03:01]}  Re8 {[%clk 0:03:04]} 10. Bf4 {[%clk 0:02:59]}  a6 {[%clk 0:03:03]} 11. a4 {[%clk 0:03:00]}  Nh5 {[%clk 0:03:03]} 12. Bg5 {[%clk 0:02:58]}  Qc7 {[%clk 0:03:03]} 13. Qc2 {[%clk 0:02:46]}  h6 {[%clk 0:03:01]} 14. Bd2 {[%clk 0:02:44]}  Nd7 {[%clk 0:03:01]} 15. e4 {[%clk 0:02:39]}  Rb8 {[%clk 0:02:59]} 16. Rab1 {[%clk 0:02:25]}  c4 {[%clk 0:02:45]} 17. Be3 {[%clk 0:02:22]}  b5 {[%clk 0:02:42]} 18. axb5 {[%clk 0:02:21]}  axb5 {[%clk 0:02:43]} 19. Nd4 {[%clk 0:02:11]}  Bxd4 {[%clk 0:02:23]} 20. Bxd4 {[%clk 0:02:09]}  Nc5 {[%clk 0:02:24]} 21. Rbe1 {[%clk 0:01:36]}  b4 {[%clk 0:01:57]} 22. Nd1 {[%clk 0:01:35]}  Nb3 {[%clk 0:01:41]} 23. Be3 {[%clk 0:01:31]}  Kh7 {[%clk 0:01:40]} 24. f4 {[%clk 0:01:28]}  Nf6 {[%clk 0:01:33]} 25. e5 {[%clk 0:01:19]}  Bf5 {[%clk 0:01:30]} 26. Qf2 {[%clk 0:01:11]}  Ng4 {[%clk 0:01:22]} 27. Qf3 {[%clk 0:01:03]}  dxe5 {[%clk 0:01:18]} 28. fxe5 {[%clk 0:00:57]}  Qxe5 {[%clk 0:01:10]} 29. Bf2 {[%clk 0:00:34]}  Nd2 {[%clk 0:00:53]} 30. Qxg4 {[%clk 0:00:18]}  Bxg4 {[%clk 0:00:52]} 31. Rxe5 {[%clk 0:00:19]}  Rxe5 {[%clk 0:00:53]} 32. Bd4 {[%clk 0:00:17]}  Nxf1 {[%clk 0:00:49]} 33. Bxe5 {[%clk 0:00:17]}  Re8 {[%clk 0:00:50]} 34. Bf4 {[%clk 0:00:14]}  Bxd1 {[%clk 0:00:33]} 35. Bxf1 {[%clk 0:00:14]}  c3 {[%clk 0:00:29]} 36. bxc3 {[%clk 0:00:13]}  bxc3 {[%clk 0:00:29]} 37. d6 {[%clk 0:00:12]}  Bg4 {[%clk 0:00:26]} 38. Bb5 {[%clk 0:00:11]}  Rd8 {[%clk 0:00:20]} 39. Kf2 {[%clk 0:00:10]}  c2 {[%clk 0:00:18]} 40. Ke3 {[%clk 0:00:10]}  c1=Q+ {[%clk 0:00:18]} 0-1


[Site "https://www.chess.com"]

[Event "Titled Tuesday Blitz February 21 Early 2023"]
[White "Ter-Sahakyan, Samvel"]
[Black "Melikyan, Gnel"]
[WhiteFideId "13302531"]
[BlackFideId "54109990"]
[WhiteElo "2617"]
[BlackElo "2238"]
[Result "1-0"]
[Round "05"]
[TimeControl "180+2"]
[Date "2023.02.21"]
[WhiteClock "0:00:42"]
[BlackClock "0:00:02"]

1. d4 {[%clk 0:02:56]}  d5 {[%clk 0:02:57]} 2. c4 {[%clk 0:02:56]}  e6 {[%clk 0:02:56]} 3. Nf3 {[%clk 0:02:56]}  Nf6 {[%clk 0:02:55]} 4. Nc3 {[%clk 0:02:55]}  Be7 {[%clk 0:02:53]} 5. Bf4 {[%clk 0:02:54]}  O-O {[%clk 0:02:51]} 6. e3 {[%clk 0:02:54]}  b6 {[%clk 0:02:50]} 7. cxd5 {[%clk 0:02:52]}  Nxd5 {[%clk 0:02:49]} 8. Nxd5 {[%clk 0:02:53]}  exd5 {[%clk 0:02:49]} 9. Bd3 {[%clk 0:02:52]}  c5 {[%clk 0:02:46]} 10. b3 {[%clk 0:02:52]}  Nc6 {[%clk 0:02:45]} 11. O-O {[%clk 0:02:48]}  Bg4 {[%clk 0:02:39]} 12. Rc1 {[%clk 0:02:31]}  Qd7 {[%clk 0:02:15]} 13. Bb5 {[%clk 0:02:25]}  f6 {[%clk 0:01:49]} 14. h3 {[%clk 0:02:17]}  Bh5 {[%clk 0:01:45]} 15. dxc5 {[%clk 0:01:45]}  bxc5 {[%clk 0:01:40]} 16. b4 {[%clk 0:01:45]}  g5 {[%clk 0:00:46]} 17. Bh2 {[%clk 0:01:34]}  Bf7 {[%clk 0:00:24]} 18. bxc5 {[%clk 0:01:29]}  Qb7 {[%clk 0:00:22]} 19. Bxc6 {[%clk 0:01:25]}  Qxc6 {[%clk 0:00:22]} 20. Nd4 {[%clk 0:01:26]}  Qa6 {[%clk 0:00:19]} 21. Qb3 {[%clk 0:01:18]}  Rfc8 {[%clk 0:00:16]} 22. c6 {[%clk 0:01:18]}  Qb6 {[%clk 0:00:12]} 23. c7 {[%clk 0:01:12]}  Qxb3 {[%clk 0:00:10]} 24. axb3 {[%clk 0:01:13]}  a5 {[%clk 0:00:10]} 25. Nf5 {[%clk 0:01:03]}  Bf8 {[%clk 0:00:09]} 26. Rc6 {[%clk 0:00:56]}  Bg6 {[%clk 0:00:03]} 27. Rxf6 {[%clk 0:00:49]}  Bg7 {[%clk 0:00:02]} 28. Ne7+ {[%clk 0:00:46]}  Kh8 {[%clk 0:00:03]} 29. Nxc8 {[%clk 0:00:42]}  Bxf6 {[%clk 0:00:02]} 30. Nb6 {[%clk 0:00:42]} 1-0


[Site "https://www.chess.com"]

[Event "Titled Tuesday Blitz February 21 Early 2023"]
[White "Tan, Jun Ying"]
[Black "Sanal, Vahap"]
[WhiteFideId "5710413"]
[BlackFideId "6300545"]
[WhiteElo "2307"]
[BlackElo "2600"]
[Result "1/2-1/2"]
[Round "05"]
[TimeControl "180+2"]
[Date "2023.02.21"]
[WhiteClock "0:00:04"]
[BlackClock "0:00:05"]

1. d4 {[%clk 0:03:00]}  d5 {[%clk 0:02:54]} 2. c4 {[%clk 0:03:01]}  e6 {[%clk 0:02:54]} 3. Nc3 {[%clk 0:03:01]}  Nf6 {[%clk 0:02:53]} 4. cxd5 {[%clk 0:03:01]}  exd5 {[%clk 0:02:52]} 5. Bg5 {[%clk 0:03:02]}  Bb4 {[%clk 0:02:53]} 6. e3 {[%clk 0:03:01]}  h6 {[%clk 0:02:50]} 7. Bh4 {[%clk 0:03:01]}  g5 {[%clk 0:02:49]} 8. Bg3 {[%clk 0:03:01]}  Ne4 {[%clk 0:02:49]} 9. Ne2 {[%clk 0:03:00]}  h5 {[%clk 0:02:47]} 10. h4 {[%clk 0:02:59]}  Bg4 {[%clk 0:02:34]} 11. f3 {[%clk 0:02:44]}  Nxg3 {[%clk 0:02:30]} 12. Nxg3 {[%clk 0:02:45]}  Bd7 {[%clk 0:02:00]} 13. Qb3 {[%clk 0:02:29]}  Nc6 {[%clk 0:01:56]} 14. Qxd5 {[%clk 0:02:20]}  gxh4 {[%clk 0:01:44]} 15. Ne4 {[%clk 0:02:20]}  Qe7 {[%clk 0:01:41]} 16. O-O-O {[%clk 0:02:02]}  O-O-O {[%clk 0:01:36]} 17. Qb3 {[%clk 0:01:51]}  f5 {[%clk 0:01:31]} 18. Nd5 {[%clk 0:01:48]}  Qf8 {[%clk 0:01:30]} 19. Nxb4 {[%clk 0:01:40]}  Qxb4 {[%clk 0:01:30]} 20. Nc5 {[%clk 0:01:25]}  Qxb3 {[%clk 0:01:24]} 21. axb3 {[%clk 0:01:26]}  f4 {[%clk 0:01:23]} 22. e4 {[%clk 0:01:18]}  h3 {[%clk 0:01:10]} 23. gxh3 {[%clk 0:01:04]}  h4 {[%clk 0:01:11]} 24. Bc4 {[%clk 0:00:58]}  Kb8 {[%clk 0:01:02]} 25. Bd5 {[%clk 0:00:55]}  Rh5 {[%clk 0:00:45]} 26. Nxd7+ {[%clk 0:00:47]}  Rxd7 {[%clk 0:00:45]} 27. Bxc6 {[%clk 0:00:48]}  bxc6 {[%clk 0:00:46]} 28. Rhg1 {[%clk 0:00:48]}  a5 {[%clk 0:00:35]} 29. Rg4 {[%clk 0:00:44]}  Rf7 {[%clk 0:00:36]} 30. Rdg1 {[%clk 0:00:38]}  Kb7 {[%clk 0:00:35]} 31. Rg5 {[%clk 0:00:36]}  Rh6 {[%clk 0:00:28]} 32. Rxa5 {[%clk 0:00:34]}  Rd6 {[%clk 0:00:27]} 33. d5 {[%clk 0:00:28]}  cxd5 {[%clk 0:00:16]} 34. Rxd5 {[%clk 0:00:29]}  Rxd5 {[%clk 0:00:16]} 35. exd5 {[%clk 0:00:30]}  Rf5 {[%clk 0:00:12]} 36. Rg4 {[%clk 0:00:28]}  Rxd5 {[%clk 0:00:13]} 37. Rxh4 {[%clk 0:00:24]}  Rd4 {[%clk 0:00:11]} 38. Kc2 {[%clk 0:00:23]}  c5 {[%clk 0:00:11]} 39. Rg4 {[%clk 0:00:23]}  Kb6 {[%clk 0:00:07]} 40. Kc3 {[%clk 0:00:22]}  Kb5 {[%clk 0:00:07]} 41. h4 {[%clk 0:00:22]}  Rd1 {[%clk 0:00:08]} 42. Rxf4 {[%clk 0:00:21]}  Rc1+ {[%clk 0:00:09]} 43. Kd2 {[%clk 0:00:21]}  Rb1 {[%clk 0:00:09]} 44. Kc2 {[%clk 0:00:21]}  Rh1 {[%clk 0:00:09]} 45. Rg4 {[%clk 0:00:20]}  Rh2+ {[%clk 0:00:10]} 46. Kc3 {[%clk 0:00:20]}  Rf2 {[%clk 0:00:09]} 47. Rf4 {[%clk 0:00:17]}  Rh2 {[%clk 0:00:10]} 48. Re4 {[%clk 0:00:12]}  Rh3 {[%clk 0:00:08]} 49. Re3 {[%clk 0:00:09]}  Rxh4 {[%clk 0:00:08]} 50. Kd3 {[%clk 0:00:10]}  Rh2 {[%clk 0:00:08]} 51. Re2 {[%clk 0:00:09]}  Rh8 {[%clk 0:00:06]} 52. f4 {[%clk 0:00:08]}  Rh3+ {[%clk 0:00:04]} 53. Kc2 {[%clk 0:00:07]}  Rf3 {[%clk 0:00:04]} 54. Re4 {[%clk 0:00:06]}  Rf2+ {[%clk 0:00:04]} 55. Kc3 {[%clk 0:00:05]}  Rf3+ {[%clk 0:00:05]} 56. Kc2 {[%clk 0:00:05]}  Rf2+ {[%clk 0:00:05]} 57. Kb1 {[%clk 0:00:05]}  Rf3 {[%clk 0:00:04]} 58. Ka2 {[%clk 0:00:06]}  Rf1 {[%clk 0:00:05]} 59. Rc4 {[%clk 0:00:05]}  Rf2 {[%clk 0:00:05]} 60. Ka3 {[%clk 0:00:05]}  Rf3 {[%clk 0:00:04]} 61. Re4 {[%clk 0:00:04]}  Rf1 {[%clk 0:00:04]} 62. Ka2 {[%clk 0:00:04]}  Rf2 {[%clk 0:00:04]} 63. Ra4 {[%clk 0:00:04]}  Rf1 {[%clk 0:00:04]} 64. Rc4 {[%clk 0:00:03]}  Rf3 {[%clk 0:00:05]} 65. Kb1 {[%clk 0:00:04]}  Rf2 {[%clk 0:00:04]} 66. Re4 {[%clk 0:00:04]}  Rf1+ {[%clk 0:00:04]} 67. Kc2 {[%clk 0:00:04]}  Rf2+ {[%clk 0:00:05]} 1/2-1/2


[Site "https://www.chess.com"]

[Event "Titled Tuesday Blitz February 21 Early 2023"]
[White "Goroshkov, Maksym"]
[Black "Bacrot, Etienne"]
[WhiteFideId "14142716"]
[BlackFideId "605506"]
[WhiteElo "2287"]
[BlackElo "2667"]
[Result "0-1"]
[Round "05"]
[TimeControl "180+2"]
[Date "2023.02.21"]
[WhiteClock "0:00:20"]
[BlackClock "0:00:41"]

1. e4 {[%clk 0:02:59]}  c5 {[%clk 0:02:59]} 2. c3 {[%clk 0:02:59]}  Nf6 {[%clk 0:02:57]} 3. e5 {[%clk 0:02:59]}  Nd5 {[%clk 0:02:57]} 4. Bc4 {[%clk 0:03:00]}  Nb6 {[%clk 0:02:57]} 5. Bb3 {[%clk 0:03:01]}  c4 {[%clk 0:02:58]} 6. Bc2 {[%clk 0:03:00]}  Nc6 {[%clk 0:02:58]} 7. Nf3 {[%clk 0:03:00]}  Qc7 {[%clk 0:02:58]} 8. Qe2 {[%clk 0:02:59]}  g5 {[%clk 0:02:59]} 9. h3 {[%clk 0:02:59]}  Bg7 {[%clk 0:02:58]} 10. d4 {[%clk 0:02:58]}  cxd3 {[%clk 0:02:58]} 11. Bxd3 {[%clk 0:02:58]}  h6 {[%clk 0:02:56]} 12. e6 {[%clk 0:02:45]}  dxe6 {[%clk 0:02:54]} 13. O-O {[%clk 0:02:46]}  Nd5 {[%clk 0:02:41]} 14. Na3 {[%clk 0:02:44]}  a6 {[%clk 0:02:41]} 15. Nc4 {[%clk 0:02:42]}  b5 {[%clk 0:02:40]} 16. Ne3 {[%clk 0:02:36]}  Nf4 {[%clk 0:02:39]} 17. Qc2 {[%clk 0:02:36]}  Nxd3 {[%clk 0:02:38]} 18. Qxd3 {[%clk 0:02:37]}  Bb7 {[%clk 0:02:38]} 19. a4 {[%clk 0:02:28]}  b4 {[%clk 0:02:37]} 20. Bd2 {[%clk 0:02:02]}  b3 {[%clk 0:02:26]} 21. Qc4 {[%clk 0:01:58]}  O-O {[%clk 0:02:17]} 22. Qxb3 {[%clk 0:01:55]}  Rfd8 {[%clk 0:02:16]} 23. Qc2 {[%clk 0:01:50]}  Na5 {[%clk 0:02:06]} 24. Nh2 {[%clk 0:01:37]}  Qc6 {[%clk 0:02:03]} 25. Rad1 {[%clk 0:01:22]}  Nc4 {[%clk 0:02:01]} 26. Nf3 {[%clk 0:01:16]}  Rd6 {[%clk 0:01:40]} 27. b3 {[%clk 0:01:10]}  Nxe3 {[%clk 0:01:37]} 28. fxe3 {[%clk 0:01:07]}  Rad8 {[%clk 0:01:34]} 29. c4 {[%clk 0:01:05]}  Qd7 {[%clk 0:01:13]} 30. Nd4 {[%clk 0:00:53]}  Bxd4 {[%clk 0:00:49]} 31. exd4 {[%clk 0:00:54]}  Rxd4 {[%clk 0:00:49]} 32. Rxf7 {[%clk 0:00:54]}  Be4 {[%clk 0:00:49]} 33. Qb2 {[%clk 0:00:28]}  Kxf7 {[%clk 0:00:46]} 34. Rf1+ {[%clk 0:00:29]}  Kg6 {[%clk 0:00:45]} 35. Bc3 {[%clk 0:00:27]}  Rd1 {[%clk 0:00:43]} 36. Bh8 {[%clk 0:00:20]}  Rxf1+ {[%clk 0:00:43]} 37. Kh2 {[%clk 0:00:21]}  Qd6+ {[%clk 0:00:42]} 38. Be5 {[%clk 0:00:20]}  Qd2 {[%clk 0:00:41]} 0-1


[Site "https://www.chess.com"]

[Event "Titled Tuesday Blitz February 21 Early 2023"]
[White "Kravtsiv, Martyn"]
[Black "Pajeken, Jakob Leon"]
[WhiteFideId "14113147"]
[BlackFideId "12942839"]
[WhiteElo "2598"]
[BlackElo "2417"]
[Result "1-0"]
[Round "05"]
[TimeControl "180+2"]
[Date "2023.02.21"]
[WhiteClock "0:01:16"]
[BlackClock "0:00:18"]

1. e4 {[%clk 0:03:00]}  e5 {[%clk 0:02:59]} 2. Nf3 {[%clk 0:03:00]}  Nc6 {[%clk 0:03:00]} 3. Nc3 {[%clk 0:03:00]}  Nf6 {[%clk 0:03:00]} 4. a4 {[%clk 0:03:01]}  a6 {[%clk 0:02:47]} 5. d4 {[%clk 0:03:00]}  exd4 {[%clk 0:02:44]} 6. Nxd4 {[%clk 0:03:01]}  Nxe4 {[%clk 0:02:42]} 7. Nxe4 {[%clk 0:02:59]}  Qe7 {[%clk 0:02:42]} 8. Ra3 {[%clk 0:02:59]}  d5 {[%clk 0:02:31]} 9. Bg5 {[%clk 0:02:56]}  f6 {[%clk 0:02:28]} 10. Bxf6 {[%clk 0:02:55]}  gxf6 {[%clk 0:02:14]} 11. Qh5+ {[%clk 0:02:55]}  Kd8 {[%clk 0:01:56]} 12. Qxd5+ {[%clk 0:02:55]}  Bd7 {[%clk 0:01:57]} 13. Re3 {[%clk 0:01:51]}  Qb4+ {[%clk 0:01:45]} 14. c3 {[%clk 0:01:46]}  Qxb2 {[%clk 0:01:41]} 15. Be2 {[%clk 0:01:43]}  Ne7 {[%clk 0:00:50]} 16. Qf7 {[%clk 0:01:40]}  f5 {[%clk 0:00:43]} 17. Nc5 {[%clk 0:01:31]}  Bxa4 {[%clk 0:00:20]} 18. O-O {[%clk 0:01:28]}  Bc6 {[%clk 0:00:19]} 19. Nxf5 {[%clk 0:01:24]}  Nxf5 {[%clk 0:00:18]} 20. Qxf5 {[%clk 0:01:17]}  Bxc5 {[%clk 0:00:18]} 21. Qf6+ {[%clk 0:01:17]}  Kd7 {[%clk 0:00:18]} 22. Bg4# {[%clk 0:01:16]} 1-0


[Site "https://www.chess.com"]

[Event "Titled Tuesday Blitz February 21 Early 2023"]
[White "Jakubowski, Krzysztof"]
[Black "Grigoriants, Sergey"]
[WhiteFideId "1112848"]
[BlackFideId "4130804"]
[WhiteElo "2486"]
[BlackElo "2562"]
[Result "1/2-1/2"]
[Round "05"]
[TimeControl "180+2"]
[Date "2023.02.21"]
[WhiteClock "0:00:34"]
[BlackClock "0:00:28"]

1. e4 {[%clk 0:03:00]}  c5 {[%clk 0:02:51]} 2. Nf3 {[%clk 0:02:59]}  d6 {[%clk 0:02:47]} 3. d4 {[%clk 0:02:59]}  cxd4 {[%clk 0:02:47]} 4. Nxd4 {[%clk 0:02:59]}  Nf6 {[%clk 0:02:48]} 5. Nc3 {[%clk 0:02:59]}  a6 {[%clk 0:02:48]} 6. Be3 {[%clk 0:02:58]}  Ng4 {[%clk 0:02:48]} 7. Bc1 {[%clk 0:02:57]}  Nf6 {[%clk 0:02:46]} 8. h3 {[%clk 0:02:57]}  e6 {[%clk 0:02:41]} 9. g4 {[%clk 0:02:53]}  h6 {[%clk 0:02:33]} 10. Bg2 {[%clk 0:02:47]}  Qc7 {[%clk 0:02:26]} 11. f4 {[%clk 0:02:42]}  Nc6 {[%clk 0:02:09]} 12. Be3 {[%clk 0:02:40]}  Be7 {[%clk 0:02:07]} 13. Qf3 {[%clk 0:02:36]}  Nxd4 {[%clk 0:02:07]} 14. Bxd4 {[%clk 0:02:35]}  e5 {[%clk 0:02:08]} 15. Be3 {[%clk 0:02:34]}  exf4 {[%clk 0:02:07]} 16. Bxf4 {[%clk 0:02:33]}  Be6 {[%clk 0:02:08]} 17. O-O-O {[%clk 0:02:25]}  Nd7 {[%clk 0:02:05]} 18. Nd5 {[%clk 0:02:17]}  Bxd5 {[%clk 0:02:05]} 19. Rxd5 {[%clk 0:02:16]}  Ne5 {[%clk 0:01:58]} 20. Bxe5 {[%clk 0:02:01]}  dxe5 {[%clk 0:01:58]} 21. Rhd1 {[%clk 0:02:00]}  O-O {[%clk 0:01:47]} 22. Qf5 {[%clk 0:01:48]}  Rad8 {[%clk 0:01:35]} 23. Bf1 {[%clk 0:01:40]}  g6 {[%clk 0:01:33]} 24. Qf3 {[%clk 0:01:36]}  Rxd5 {[%clk 0:01:32]} 25. Rxd5 {[%clk 0:01:33]}  Rd8 {[%clk 0:01:31]} 26. Rxd8+ {[%clk 0:01:25]}  Bxd8 {[%clk 0:01:29]} 27. a4 {[%clk 0:01:23]}  a5 {[%clk 0:01:24]} 28. b3 {[%clk 0:01:21]}  Bg5+ {[%clk 0:01:17]} 29. Kb2 {[%clk 0:01:20]}  Kg7 {[%clk 0:01:16]} 30. Bc4 {[%clk 0:01:19]}  b6 {[%clk 0:01:15]} 31. Qd3 {[%clk 0:01:15]}  Qd8 {[%clk 0:01:01]} 32. Bd5 {[%clk 0:01:10]}  Qc7 {[%clk 0:00:59]} 33. Qf3 {[%clk 0:01:08]}  Qe7 {[%clk 0:00:53]} 34. c3 {[%clk 0:01:07]}  Qc7 {[%clk 0:00:51]} 35. Kc2 {[%clk 0:01:07]}  Bf4 {[%clk 0:00:50]} 36. Qd3 {[%clk 0:01:00]}  Qc5 {[%clk 0:00:49]} 37. Bc4 {[%clk 0:00:38]}  Qf2+ {[%clk 0:00:45]} 38. Kb1 {[%clk 0:00:38]}  Qe3 {[%clk 0:00:32]} 39. Qxe3 {[%clk 0:00:34]}  Bxe3 {[%clk 0:00:32]} 40. Kc2 {[%clk 0:00:35]}  Kf6 {[%clk 0:00:30]} 41. Kd3 {[%clk 0:00:35]}  Bf2 {[%clk 0:00:30]} 42. Ke2 {[%clk 0:00:35]}  Bc5 {[%clk 0:00:28]} 43. Bd5 {[%clk 0:00:34]} 1/2-1/2


[Site "https://www.chess.com"]

[Event "Titled Tuesday Blitz February 21 Early 2023"]
[White "Kvaloy, Aksel Bu"]
[Black "Bernadskiy, Vitaliy"]
[WhiteFideId "1528815"]
[BlackFideId "14100371"]
[WhiteElo "2321"]
[BlackElo "2592"]
[Result "0-1"]
[Round "05"]
[TimeControl "180+2"]
[Date "2023.02.21"]
[WhiteClock "0:00:10"]
[BlackClock "0:00:08"]

1. d4 {[%clk 0:02:33]}  Nf6 {[%clk 0:02:58]} 2. c4 {[%clk 0:02:31]}  e6 {[%clk 0:02:59]} 3. g3 {[%clk 0:02:29]}  d5 {[%clk 0:02:59]} 4. Nf3 {[%clk 0:02:28]}  Bb4+ {[%clk 0:02:59]} 5. Bd2 {[%clk 0:02:28]}  a5 {[%clk 0:02:59]} 6. Bg2 {[%clk 0:02:28]}  O-O {[%clk 0:02:59]} 7. O-O {[%clk 0:02:28]}  b6 {[%clk 0:02:26]} 8. Qc2 {[%clk 0:02:25]}  Bb7 {[%clk 0:02:24]} 9. a3 {[%clk 0:02:19]}  Be7 {[%clk 0:02:22]} 10. Bf4 {[%clk 0:02:14]}  Nbd7 {[%clk 0:02:20]} 11. Nbd2 {[%clk 0:02:02]}  c5 {[%clk 0:02:18]} 12. dxc5 {[%clk 0:01:57]}  bxc5 {[%clk 0:02:19]} 13. cxd5 {[%clk 0:01:43]}  exd5 {[%clk 0:02:12]} 14. Rfd1 {[%clk 0:01:40]}  Re8 {[%clk 0:02:08]} 15. Rac1 {[%clk 0:01:40]}  Bf8 {[%clk 0:02:07]} 16. Nb1 {[%clk 0:01:29]}  g6 {[%clk 0:02:04]} 17. Bg5 {[%clk 0:01:19]}  Qb6 {[%clk 0:02:02]} 18. Nc3 {[%clk 0:01:09]}  Bc6 {[%clk 0:02:01]} 19. Bxf6 {[%clk 0:01:03]}  Nxf6 {[%clk 0:02:00]} 20. e3 {[%clk 0:00:56]}  Rad8 {[%clk 0:01:40]} 21. Ne2 {[%clk 0:00:46]}  a4 {[%clk 0:01:21]} 22. Nc3 {[%clk 0:00:43]}  Qa6 {[%clk 0:01:00]} 23. Bf1 {[%clk 0:00:40]}  Qa5 {[%clk 0:00:56]} 24. Bg2 {[%clk 0:00:37]}  Qa8 {[%clk 0:00:53]} 25. Ne1 {[%clk 0:00:28]}  Bg7 {[%clk 0:00:30]} 26. Ne2 {[%clk 0:00:26]}  Bf8 {[%clk 0:00:24]} 27. Nd3 {[%clk 0:00:26]}  Bb5 {[%clk 0:00:24]} 28. Nef4 {[%clk 0:00:22]}  g5 {[%clk 0:00:22]} 29. Ne2 {[%clk 0:00:18]}  Ne4 {[%clk 0:00:20]} 30. f3 {[%clk 0:00:09]}  Nf6 {[%clk 0:00:19]} 31. Kf2 {[%clk 0:00:10]}  Bc4 {[%clk 0:00:17]} 32. Nc3 {[%clk 0:00:06]}  Bb3 {[%clk 0:00:16]} 33. Qd2 {[%clk 0:00:06]}  Bxd1 {[%clk 0:00:16]} 34. Rxd1 {[%clk 0:00:06]}  h6 {[%clk 0:00:14]} 35. f4 {[%clk 0:00:07]}  Ng4+ {[%clk 0:00:13]} 36. Kg1 {[%clk 0:00:06]}  Nxe3 {[%clk 0:00:14]} 37. Re1 {[%clk 0:00:05]}  Nxg2 {[%clk 0:00:14]} 38. Rxe8 {[%clk 0:00:05]}  Rxe8 {[%clk 0:00:14]} 39. Qxg2 {[%clk 0:00:03]}  d4 {[%clk 0:00:12]} 40. Nd5 {[%clk 0:00:03]}  Rd8 {[%clk 0:00:10]} 41. Nf6+ {[%clk 0:00:03]}  Kg7 {[%clk 0:00:10]} 42. Ne4 {[%clk 0:00:03]}  f5 {[%clk 0:00:10]} 43. Nexc5 {[%clk 0:00:04]}  Qxg2+ {[%clk 0:00:09]} 44. Kxg2 {[%clk 0:00:04]}  Bxc5 {[%clk 0:00:09]} 45. Nxc5 {[%clk 0:00:05]}  d3 {[%clk 0:00:09]} 46. Ne6+ {[%clk 0:00:06]}  Kf6 {[%clk 0:00:08]} 47. Nxd8 {[%clk 0:00:07]}  d2 {[%clk 0:00:08]} 48. fxg5+ {[%clk 0:00:07]}  hxg5 {[%clk 0:00:08]} 49. h4 {[%clk 0:00:08]}  d1=Q {[%clk 0:00:08]} 50. hxg5+ {[%clk 0:00:09]}  Kg6 {[%clk 0:00:08]} 51. Ne6 {[%clk 0:00:10]}  Qe2+ {[%clk 0:00:08]} 0-1


[Site "https://www.chess.com"]

[Event "Titled Tuesday Blitz February 21 Early 2023"]
[White "Vakhlamov, Igor L."]
[Black "Potapova, Margarita"]
[WhiteFideId "24126748"]
[BlackFideId "14126869"]
[WhiteElo "2413"]
[BlackElo "2104"]
[Result "1-0"]
[Round "05"]
[TimeControl "180+2"]
[Date "2023.02.21"]
[WhiteClock "0:00:04"]
[BlackClock "0:00:05"]

1. e4 {[%clk 0:02:59]}  c5 {[%clk 0:02:58]} 2. Nf3 {[%clk 0:03:00]}  d6 {[%clk 0:02:59]} 3. Nc3 {[%clk 0:03:00]}  Nf6 {[%clk 0:02:59]} 4. d4 {[%clk 0:03:01]}  cxd4 {[%clk 0:03:00]} 5. Qxd4 {[%clk 0:03:02]}  Nc6 {[%clk 0:03:00]} 6. Bb5 {[%clk 0:03:02]}  Bd7 {[%clk 0:03:00]} 7. Bxc6 {[%clk 0:03:03]}  Bxc6 {[%clk 0:03:01]} 8. Bg5 {[%clk 0:03:03]}  e6 {[%clk 0:03:02]} 9. O-O-O {[%clk 0:03:04]}  Be7 {[%clk 0:03:03]} 10. Rhe1 {[%clk 0:03:04]}  O-O {[%clk 0:03:03]} 11. e5 {[%clk 0:03:05]}  dxe5 {[%clk 0:03:04]} 12. Nxe5 {[%clk 0:03:05]}  Qc7 {[%clk 0:03:00]} 13. Qc4 {[%clk 0:03:04]}  Rac8 {[%clk 0:02:57]} 14. Nxc6 {[%clk 0:03:05]}  Qxc6 {[%clk 0:02:54]} 15. Qxc6 {[%clk 0:03:05]}  Rxc6 {[%clk 0:02:55]} 16. Ne4 {[%clk 0:03:06]}  Rfc8 {[%clk 0:02:51]} 17. Re2 {[%clk 0:03:04]}  Kf8 {[%clk 0:02:51]} 18. Nxf6 {[%clk 0:03:04]}  gxf6 {[%clk 0:02:49]} 19. Bh6+ {[%clk 0:03:04]}  Ke8 {[%clk 0:02:49]} 20. Rd3 {[%clk 0:03:03]}  f5 {[%clk 0:02:48]} 21. Rh3 {[%clk 0:03:02]}  Rc4 {[%clk 0:02:36]} 22. Be3 {[%clk 0:02:51]}  Rh4 {[%clk 0:02:34]} 23. Rxh4 {[%clk 0:02:50]}  Bxh4 {[%clk 0:02:35]} 24. c3 {[%clk 0:02:22]}  a6 {[%clk 0:02:29]} 25. Kc2 {[%clk 0:02:22]}  Bf6 {[%clk 0:02:20]} 26. Rd2 {[%clk 0:02:16]}  Rd8 {[%clk 0:02:16]} 27. a4 {[%clk 0:02:08]}  Rxd2+ {[%clk 0:02:12]} 28. Kxd2 {[%clk 0:02:09]}  Kd7 {[%clk 0:02:12]} 29. Kd3 {[%clk 0:02:09]}  Kc6 {[%clk 0:02:11]} 30. b3 {[%clk 0:02:06]}  e5 {[%clk 0:02:06]} 31. f3 {[%clk 0:02:07]}  Be7 {[%clk 0:01:58]} 32. h3 {[%clk 0:02:03]}  f4 {[%clk 0:01:56]} 33. Ba7 {[%clk 0:01:34]}  Bd6 {[%clk 0:01:43]} 34. Ke4 {[%clk 0:01:32]}  b6 {[%clk 0:01:37]} 35. a5 {[%clk 0:01:18]}  bxa5 {[%clk 0:01:37]} 36. Kf5 {[%clk 0:01:18]}  Kb5 {[%clk 0:01:35]} 37. Kf6 {[%clk 0:01:06]}  a4 {[%clk 0:01:35]} 38. bxa4+ {[%clk 0:00:48]}  Kxa4 {[%clk 0:01:36]} 39. Kxf7 {[%clk 0:00:49]}  Kb5 {[%clk 0:01:36]} 40. Ke6 {[%clk 0:00:49]}  Bc5 {[%clk 0:01:36]} 41. Bb8 {[%clk 0:00:47]}  a5 {[%clk 0:01:36]} 42. Kd5 {[%clk 0:00:34]}  a4 {[%clk 0:01:33]} 43. Bxe5 {[%clk 0:00:31]}  Be3 {[%clk 0:01:20]} 44. c4+ {[%clk 0:00:25]}  Kb4 {[%clk 0:01:20]} 45. Bd6+ {[%clk 0:00:19]}  Kb3 {[%clk 0:01:01]} 46. c5 {[%clk 0:00:20]}  a3 {[%clk 0:00:56]} 47. c6 {[%clk 0:00:19]}  a2 {[%clk 0:00:45]} 48. c7 {[%clk 0:00:19]}  a1=Q {[%clk 0:00:42]} 49. c8=Q {[%clk 0:00:19]}  Qd1+ {[%clk 0:00:17]} 50. Ke6 {[%clk 0:00:17]}  Qg1 {[%clk 0:00:16]} 51. Qb7+ {[%clk 0:00:16]}  Kc4 {[%clk 0:00:15]} 52. Qe4+ {[%clk 0:00:15]}  Kb5 {[%clk 0:00:13]} 53. Bxf4 {[%clk 0:00:09]}  Bc5 {[%clk 0:00:07]} 54. Qe2+ {[%clk 0:00:07]}  Kb6 {[%clk 0:00:05]} 55. Qb2+ {[%clk 0:00:05]}  Kc6 {[%clk 0:00:05]} 56. Qc2 {[%clk 0:00:05]}  Qe1+ {[%clk 0:00:06]} 57. Qe4+ {[%clk 0:00:05]}  Qxe4+ {[%clk 0:00:05]} 58. fxe4 {[%clk 0:00:06]}  Bf2 {[%clk 0:00:05]} 59. g4 {[%clk 0:00:07]}  Bc5 {[%clk 0:00:04]} 60. Bg5 {[%clk 0:00:06]}  Bd4 {[%clk 0:00:04]} 61. e5 {[%clk 0:00:06]}  Bc3 {[%clk 0:00:04]} 62. Be7 {[%clk 0:00:06]}  Bd4 {[%clk 0:00:04]} 63. Ba3 {[%clk 0:00:06]}  Bc3 {[%clk 0:00:04]} 64. Kf5 {[%clk 0:00:05]}  Kd7 {[%clk 0:00:04]} 65. e6+ {[%clk 0:00:05]}  Ke8 {[%clk 0:00:05]} 66. Bd6 {[%clk 0:00:05]}  Bd4 {[%clk 0:00:05]} 67. Be5 {[%clk 0:00:05]}  Bc5 {[%clk 0:00:05]} 68. Kf6 {[%clk 0:00:05]}  Bf8 {[%clk 0:00:06]} 69. Bf4 {[%clk 0:00:04]}  Kd8 {[%clk 0:00:05]} 70. Kf7 {[%clk 0:00:04]}  Be7 {[%clk 0:00:05]} 71. Bc7+ {[%clk 0:00:04]} 1-0


[Site "https://www.chess.com"]